Cogmind - Beta 11 @@@ ROGUE MODE // 2022.04.13 @ 19:23:57 // Halloween2019/Abominations Player: Infomantis Result: Core destroyed Performance ------------- Evolutions (0) 0 Regions Visited (1) 200 Robots Destroyed (4) 20 Value Destroyed (80) 80 Prototype IDs (0) 0 Alien Tech Used (0) 0 Bonus (0) 0 TOTAL SCORE: 300 Bonus ------- None Cogmind --------- Core Integrity 0/250 Matter 300/300 Energy 100/100 System Corruption 3% Temperature Cool (0) Movement Walking (120) Location -10/Materials Parts ------- > --- POWER (1) -------- (None) > --- PROPULSION (2) --- Aluminum Leg > --- UTILITY (2) ------ Small Storage Unit Seismic Detector > --- WEAPON (2) ------- (None) > --- INVENTORY (8) ---- Ion Engine Light Treads Light Treads Compact Wheel Compact Wheel Heat Sink Medium Laser Mining Laser Peak State ------------ > --- POWER ------------ Light Ion Engine > --- PROPULSION ------- Aluminum Leg Aluminum Leg > --- UTILITY ---------- Small Storage Unit Tractor Beam > --- WEAPON ----------- Small Laser Assault Rifle > --- INVENTORY -------- Ion Engine Light Treads Light Treads Compact Wheel Compact Wheel Medium Laser [Rating: 7] Favorites ----------- Power Light Ion Engine Engine Light Ion Engine Propulsion Aluminum Leg Leg Aluminum Leg Utility Small Storage Unit Device Seismic Detector Storage Small Storage Unit Weapon Small Laser Energy Gun Small Laser Ballistic Gun Assault Rifle Build | -11 -10 ------- Run | Scr Mat Slots Evolved . | . . Power . | . . Propulsion . | . . Utility . | . . Weapon . | . . Parts Attached 8 | 8 . Power 1 | 1 . Engine 1 | 1 . Core . | . . Reactor . | . . Propulsion 2 | 2 . Treads . | . . Leg 2 | 2 . Wheel . | . . Hover . | . . Flight . | . . Utility 3 | 3 . Device 2 | 2 . Storage 1 | 1 . Processor . | . . Hackware . | . . Protection . | . . Artifact . | . . Weapon 2 | 2 . Energy Gun 1 | 1 . Energy Cannon . | . . Ballistic Gun 1 | 1 . Ballistic Cannon . | . . Launcher . | . . Special Weapon . | . . Impact Weapon . | . . Slashing Weapon . | . . Piercing Weapon . | . . Special Melee Weapon . | . . Unidentified Prototypes . | . . Parts Lost 4 | . 4 Power 1 | . 1 Propulsion 1 | . 1 Utility . | . . Weapon 2 | . 2 Highest Loss Streak 4 | . 4 To Critical Strikes . | . . Average Slot Usage (%) 66 | . 66 Engine 4 | . 4 Leg 21 | . 21 Device 14 | . 14 Storage 14 | . 14 Energy Gun 7 | . 7 Ballistic Gun 5 | . 5 Naked Turns . | . . Heaviest Build 12 | 12 12 Greatest Support 20 | 20 20 Greatest Overweight (x) . | . . Average Overweight (x) . | . . Largest Inventory Capacity 8 | 8 8 Average Capacity 7 | 7 8 Most Carried 8 | 8 8 Average Carried 6 | 4 7 Final Capacity 8 | 8 8 Final Carried 8 | 8 8 Class Distribution -------------------- 100% | Mutant Dominant Class ---------------- Mutant | -10/Materials Resources | -11 -10 ----------- Run | Scr Mat Matter Collected 332 | 271 61 Remotely 54 | 54 . Salvage Created 152 | 109 43 Parts 13 | 7 6 Haulers Intercepted . | . . Recyclers Shooed . | . . Parts Field Recycled . | . . Retrieved Matter . | . . Parts Self-Destructed . | . . Prevented . | . . Kills | -11 -10 ------- Run | Scr Mat Combat Hostiles Destroyed 1 | . 1 Guns 1 | . 1 Classes Destroyed 3 | 2 1 Tunneler 2 | 2 . Recycler 1 | 1 . Abomination 1 | . 1 Best Kill Streak 2 | 2 1 Combat Bots Only 1 | . 1 Max Kills in Single Turn 1 | 1 1 Gunslinging . | . . Exploded . | . . Melee . | . . Uniques/NPCs Destroyed . | . . Combat | -11 -10 -------- Run | Scr Mat Damage Taken 704 | . 704 Core 281 | . 281 Absorbed by Shields . | . . Core Remaining (%) 100 | 100 . Volleys Fired 14 | 8 6 Largest 2 | 2 2 Hottest 60 | 60 60 Shots Fired 28 | 16 12 Gun 28 | 16 12 Cannon . | . . Launcher . | . . Special . | . . Kinetic 14 | 8 6 Thermal 14 | 8 6 Explosive . | . . Electromagnetic . | . . Robot Hit Streak 5 | 5 3 Robot Miss Streak 2 | 2 2 Penetration Max . | . . Secondary Targets . | . . Shots Hit Robots 17 | 10 7 Core Hits 7 | 4 3 Critical Kills . | . . Critical Parts Destroyed . | . . Critical Strikes . | . . Melee Attacks . | . . Impact . | . . Slashing . | . . Piercing . | . . Sneak Attacks . | . . Combat Hostiles . | . . Follow-up Attacks . | . . Damage Inflicted 211 | 123 88 Guns 208 | 123 85 Cannons . | . . Explosions . | . . Melee . | . . Ramming 3 | . 3 Kinetic 137 | 80 57 Thermal 71 | 43 28 Explosive . | . . Electromagnetic . | . . Impact . | . . Slashing . | . . Piercing . | . . Highest Corruption 3 | . 3 Average Corruption 3 | . 3 Corruption Purged . | . . Corruption Blocked . | . . Effects 3 | . 3 Matter Fused 2 | . 2 Heat Flow Errors 1 | . 1 Overload Shots . | . . Overflow Damage . | . . Projectiles . | . . Explosions . | . . Melee . | . . Knockbacks . | . . Impact . | . . Kinetic . | . . Secondary . | . . Self-Inflicted Damage . | . . Shots . | . . Rammed . | . . Targets Rammed 2 | . 2 Kicked 2 | . 2 Crushed . | . . Highest Temperature 278 | . 278 Average Temperature 138 | . 138 Received Heat Transfer 69 | . 69 Effects 3 | . 3 Energy Bleed 3 | . 3 Siege Activations . | . . Robots Corrupted . | . . Combat Hostiles . | . . Parts Fried . | . . Impact Corruptions . | . . Robots Melted . | . . Combat Hostiles . | . . Parts Melted . | . . Heat Transferred 112 | 100 12 Parts Sabotaged . | . . Parts Stolen . | . . Parts Stripped . | . . Power Chain Reactions . | . . Missiles Intercepted . | . . Alert | -11 -10 ------- Run | Scr Mat Peak Influence 30 | 15 30 Initial 9 | . 9 Average 11 | 5 15 Maximum Alert Level . | . . Low Security (%) 100 | 100 100 Level 1 . | . . Level 2 . | . . Level 3 . | . . Level 4 . | . . Level 5 . | . . High Security . | . . Max Security . | . . Squads Dispatched 4 | . 4 Investigation . | . . Extermination . | . . Reinforcement 3 | . 3 Assault 1 | . 1 Garrison . | . . Intercept . | . . Searches Triggered . | . . Construction Impeded . | . . Haulers Reinforced . | . . Active Scanning Responses . | . . Cargo Convoy Interrupts . | . . Stealth | -11 -10 --------- Run | Scr Mat Distress Signals 1 | . 1 Communications Jammed . | . . Distress Signals . | . . Times Spotted 12 | . 12 Peak Tracking Total 7 | . 7 Tactical Retreats 2 | . 2 Traps | -11 -10 ------- Run | Scr Mat Traps Triggered 1 | . 1 Indirectly . | . . Trap Hack Attempts . | . . Triggered . | . . Disarmed . | . . Reprogrammed . | . . Reused . | . . Traps Extracted . | . . Installed . | . . Triggered . | . . Machines | -11 -10 ---------- Run | Scr Mat Machines Disabled . | . . Max in Single Turn . | . . Machines Sabotaged . | . . Garrisons Compromised . | . . Overloaded Fab Kills . | . . Hacking | -11 -10 --------- Run | Scr Mat Machines Accessed . | . . Terminals . | . . Fabricators . | . . Repair Stations . | . . Recycling Units . | . . Scanalyzers . | . . Garrison Access . | . . Total Hacks . | . . Successful . | . . Failed . | . . Catastrophic . | . . Database Lockouts . | . . Manual . | . . Terminals . | . . Fabricators . | . . Repair Stations . | . . Recycling Units . | . . Scanalyzers . | . . Garrison Access . | . . Terminal Hacks . | . . Fabricator Hacks . | . . Repair Station Hacks . | . . Recycling Unit Hacks . | . . Scanalyzer . | . . Garrison Access Hacks . | . . Unauthorized Hacks . | . . Terminals . | . . Fabricators . | . . Repair Stations . | . . Recycling Units . | . . Scanalyzers . | . . Garrison Access . | . . Data Cores Recovered . | . . Used . | . . Hacking Detections . | . . Full Trace Events . | . . Feedback Events . | . . Feedback Blocked . | . . Robot Schematics Acquired . | . . Robots Built . | . . Authchips . | . . Time . | . . Total Robot Build Rating . | . . Part Schematics Acquired . | . . Parts Built . | . . Authchips . | . . Time . | . . Total Part Build Rating . | . . Parts Repaired . | . . Time . | . . Parts Recycled . | . . Recycled Matter . | . . Retrieved Matter . | . . Retrieved Components . | . . Parts Scanalyzed . | . . Part Schematics Acquired . | . . Parts Damaged . | . . Bothacking | -11 -10 ------------ Run | Scr Mat Used RIF Installer . | . . Robots Hacked . | . . Non-combat . | . . Combat . | . . Robot Hacks Applied . | . . Relay Couplers Released . | . . Fabnet Peak Effective % . | . . Robots Rewired . | . . Allies Hacked . | . . Hacks Repelled . | . . Allies | -11 -10 -------- Run | Scr Mat Total Allies . | . . Largest Group . | . . Highest-Rated Group . | . . Highest-Rated Ally . | . . Total Orders . | . . Ally Attacks . | . . Total Damage . | . . Kills . | . . Allies Corrupted . | . . Allies Melted . | . . Intel | -11 -10 ------- Run | Scr Mat Robot Analysis Total . | . . Derelict Logs Recovered . | . . Drone Launches . | . . Drone Recoveries . | . . Exploration | -11 -10 ------------- Run | Scr Mat Turns Passed 359 | 126 233 Spaces Moved 217 | 70 147 Core 3 | 3 . Treads . | . . Legs 214 | 67 147 Wheels . | . . Hover . | . . Flight . | . . Fastest Speed 50 | 50 120 Average Speed 119 | 117 120 Slowest Speed 120 | 120 120 Overloaded Moves . | . . Propulsion Burnouts . | . . Robots Hopped . | . . Cave-ins Triggered . | . . Exploration Rate (%) 15 | 4 27 Regions Visited 1 Branch Regions . Pre-discovered Areas . | . . Known Exits Taken . | . . Unknown Exits Taken 1 | 1 . Scrap Searched . | . . Spaces Dug . | . . Terrain Destroyed . | . . Melee . | . . Projectile . | . . AOE . | . . Terrain Rammed . | . . Walls Destroyed . | . . Machines Disabled . | . . Actions | -11 -10 --------- Run | Scr Mat Total 252 | 95 157 Wait . | . . Move 216 | 69 147 Hop . | . . Pick Up 10 | 9 1 Fast Attach 7 | 7 . Attach 1 | 1 . Detach . | . . Swap . | . . Drop 2 | 1 1 Fire 14 | 8 6 Melee . | . . Ram . | . . Kick 2 | . 2 Crush . | . . Escape Stasis . | . . Rewire . | . . Trap . | . . Miscellaneous . | . . Route ------- -11/Scrapyard -10/Materials History --------- Turn | Location | Event 4 | -11/Scrapyard | Discovered new exit (range 16) 127 | -11/Scrapyard | Entered Materials 214 | -10/Materials | Core integrity fell below 50% 278 | -10/Materials | Lost 4 parts (1p1n2w) 315 | -10/Materials | Build established: Mutant 335 | -10/Materials | Core integrity fell below 20% 360 | -10/Materials | Core destroyed Last Messages --------------- 00247_ An explosion rips through the floor. 00247_ Aluminum Leg destroyed. 00247_ Sml. Laser destroyed. 00257_ Connecting with Recycling Unit... 00257_ Current location identified: Materials 00266_ Frozen by Ice Anomaly. 00276_ The unstable cave ceiling collapses. 00311_ System corrupted: Matter fused (-9). 00324_ Unstable Anomaly suddenly flashes brightly. 00324_ Engulfed by violent ripples tearing at the fabric of space. 00330_ Parts repaired by Paradox Anomaly. 00332_ System corrupted: Matter fused (-6). 00334_ Unstable Anomaly suddenly flashes brightly. 00334_ Engulfed by violent ripples tearing at the fabric of space. 00341_ Acquired 15 matter. 00347_ Kicked EM Anomaly. 00350_ Frozen by Ice Anomaly. 00357_ ALERT: Dispatching additional forces to engage threats. 00360_ Unstable Anomaly suddenly flashes brightly. 00360_ Engulfed by violent ripples tearing at the fabric of space. Map ----- +----------------------------------------------------+ | ???????????????"" % #???????????????????????????? | | ???????????????# #???????????????????????????? | | ??????????????## #???????????????????????????? | | ??????????????? #???????????????????????????? | | ??????########?# #???????????????????????????? | | ??????# #?# " #???????????????????????????? | | ??????# #?# " #???????????????????????????? | | ??????# """ ### " %#???????????????????????????? | | ??????# """ ## "% #???????????????????????????? | | ??????# """ ## " #???????????????????????????? | | ???????? ?# " #???????????????????????????? | | ??????####+####" ##??????????????????????????? | | ??????# " ??????????????????????????? | | ??????# " ??????????????????????????? | | ??????# "##?????????????????????????? | | ??????######"# """##????????????????????????? | | ???????????### "#????????????????????????? | | ???????????# # "#????????????????????????? | | ???? ??????### #% "?????????????????????????? | | ??? """?# # # #?????????????????????????? | | ??? """?# # # #?????????????????????????? | | ??? ### #% %%/ ##????????????????????????? | | ???? # #% #"""""#"########?????????????????? | | ?????? # #%%# " #?????????????????? | | ???###+#"#""##% ########## #?????????????????? | | ???# ##### %% %@ #?????????????????? | | ?### ######### #?????????????????? | | ?# " # "n% #?????????????????? | | " ##### #"#####""" %##?????????????????? | | """"" "" ## ## " #??????????????????? | | ! " " ##### ## " #??????????????????? | | " ??????# ## " % #??????????????????? | | "????????# ## " ! #??????????????????? | | """ #???????## ## " #??????????????????? | | """ ######### # | " #??????????????????? | | """ + # " ??????????????????? | | #### # # ?????????????????? | | #?## ### ########## ?????????????????? | | ""#?## #############????#?#???????????????????? | | Y"#?# #??????????????????????????? | | ""### """ """ #??????????????????????????? | | + """ """ #??????????????????????????? | | ####### """ """ #??????????????????????????? | | ??????##### #??????????????????????????? | | ??????????# #??????????????????????????? | | ??????????# #??????????????????????????? | | ??????????#############??????????????????????????? | | ?????????????????????????????????????????????????? | | | | | +----------------------------------------------------+ Best States ------------- Heat Dissipation 25 Energy Generation 10 Energy Capacity 125 Matter Stores 300 Matter Capacity 300 Sight Range 16 Terrain Scan Density 10 Evasion (%) 55 Item Schematics ----------------- None Robot Schematics ------------------ None Fabricated ------------ Nothing Alien Tech Used ----------------- None Achievements -------------- None Challenges ------------ None Game ------ Seed BurstCoilWarhead Manual? 0 Play Time 00:07:56 Cumulative 145.1 hours Start 2022.04.13 @ 19:19:22 End 2022.04.13 @ 19:23:57 Sessions 1 Manual Loads 0 Difficulty Rogue Special Mode Halloween2019/Abominations Game No. 109 Rogue 89 Adventurer 6 Explorer 14 Win Type - Total 9 Types 5/0/1/1/0/0/1/1/0 Lore% 82 Gallery% 83 Achievement% 64 Wizard Run 0 Options --------- ASCII 0 Keyboard 0 Movement Numpad Keybinds 0 Fullscreen 1 Font 12/Fuzzy Map View 83x54 Tactical HUD 1 Map Filters NONE Filters NONE Steam 1 RUN: 9cf8d31d-232b-4750-8f2e-61acfef0a770